fUSD/lending_fUSD_20240212
["ID","MTS","AMOUNT","RATE_DAILY","PERIOD"]
[313808288,1707733870194,-500.0,0.00023229,2]
[313808289,1707733870203,-500.0,0.00023229,2]
[313808290,1707733870213,-500.0,0.00023229,2]
[313808291,1707733870222,-5547.02,0.00023229,2]
[313808292,1707733870232,-500.0,0.00023229,2]
[313808293,1707733870242,-500.0,0.00023229,2]
[313808294,1707733870252,-500.0,0.00023229,2]
[313808295,1707733870262,-639.7,0.00023229,2]
[313808296,1707733870271,-500.0,0.00023229,2]
[313808297,1707733870281,-10421.15,0.00023229,2]
[313808298,1707733870291,-500.0,0.00023229,2]
[313808299,1707733870300,-995.68,0.00023229,2]
[313808300,1707733870310,-500.0,0.00023229,2]
[313808301,1707733870321,-833.12,0.00023229,2]
[313808302,1707733870331,-500.0,0.00023229,2]
[313808303,1707733870341,-500.0,0.00023229,2]
[313808304,1707733870350,-500.0,0.00023229,2]
[313808305,1707733870360,-2262.56,0.00023229,2]
[313808306,1707733870370,-563.82,0.00023229,2]
[313808307,1707733870379,-588.41,0.00023229,2]
[313808308,1707733870388,-500.0,0.00023229,2]
[313808309,1707733870397,-500.0,0.00023229,2]
[313808310,1707733870407,-1609.22,0.00023229,2]
[313808311,1707733870416,-500.0,0.00023229,2]
[313808312,1707733870425,-807.99,0.00023229,2]
[313808313,1707733870435,-500.0,0.00023229,2]
[313808314,1707733870444,-500.0,0.00023229,2]
[313808315,1707733870453,-519.62,0.00023229,2]
[313808316,1707733870463,-596.91,0.00023229,2]
[313808317,1707733870472,-1981.21,0.00023229,2]
[313808318,1707733870481,-500.0,0.00023229,2]
[313808319,1707733870491,-797.72,0.00023229,2]
[313808320,1707733870500,-500.0,0.00023229,2]
[313808321,1707733870510,-671.69,0.00023229,2]
[313808322,1707733870519,-500.0,0.00023229,2]
[313808323,1707733870529,-815.55,0.00023229,2]
[313808324,1707733870539,-729.69,0.00023229,2]
[313808325,1707733870548,-2389.73,0.00023229,2]
[313808326,1707733870558,-718.0,0.00023229,2]
[313808327,1707733870567,-500.0,0.00023229,2]
[313808328,1707733870576,-664.45,0.00023229,2]
[313808329,1707733870585,-788.41,0.00023229,2]
[313808330,1707733870595,-500.0,0.00023229,2]
[313808331,1707733870604,-1199.43,0.00023229,2]
[313808332,1707733870614,-500.0,0.00023229,2]
[313808333,1707733870623,-500.0,0.00023229,2]
[313808334,1707733870632,-617.79,0.00023229,2]
[313808335,1707733870642,-500.0,0.00023229,2]
[313808336,1707733870651,-534.74,0.00023229,2]
[313808337,1707733870660,-500.0,0.00023229,2]
[313808338,1707733870670,-13152.32,0.00023229,2]
[313808339,1707733870679,-500.0,0.00023229,2]
[313808340,1707733870688,-627.06,0.00023229,2]
[313808341,1707733870698,-794.39,0.00023229,2]
[313808342,1707733870707,-5987.72,0.00023229,2]
[313808343,1707733870717,-500.0,0.00023229,2]
[313808344,1707733870726,-500.0,0.00023229,2]
[313808345,1707733870736,-500.0,0.00023229,2]
[313808346,1707733870745,-500.0,0.00023229,2]
[313808347,1707733870754,-500.0,0.0002323,2]
[313808348,1707733870764,-372.78106359,0.0002323,2]
[313808349,1707733870773,-500.0,0.0002323,2]
[313808350,1707733870782,-500.0,0.0002323,2]
[313808351,1707733870792,-500.0,0.0002323,2]
[313808352,1707733870802,-494.17858693,0.0002323,2]
[313808353,1707733870812,-500.0,0.0002323,2]
[313808354,1707733870823,-500.0,0.0002323,2]
[313808355,1707733870833,-500.0,0.0002323,2]
[313808356,1707733870843,-500.0,0.0002323,2]
[313808357,1707733870853,-500.0,0.0002323,2]
[313808358,1707733870863,-500.0,0.0002323,2]
[313808359,1707733870874,-580.7,0.0002323,2]
[313808360,1707733870883,-500.0,0.0002323,2]
[313808361,1707733870893,-560.16,0.0002323,2]
[313808362,1707733870903,-500.0,0.0002323,2]
[313808363,1707733870913,-500.0,0.0002323,2]
[313808364,1707733870923,-500.0,0.0002323,2]
[313808365,1707733870932,-500.0,0.0002323,2]
[313808366,1707733870941,-531.25088827,0.0002323,2]
[313808367,1707733870951,-500.0,0.0002323,2]
[313808368,1707733870960,-500.0,0.0002323,2]
[313808369,1707733870969,-500.0,0.0002323,2]
[313808370,1707733870978,-500.0,0.0002323,2]
[313808371,1707733870988,-500.0,0.0002323,2]
[313808372,1707733870998,-500.0,0.0002323,2]
[313808373,1707733871007,-502.1,0.0002323,2]
[313808374,1707733871017,-500.0,0.0002323,2]
[313808375,1707733871027,-566.03,0.00023313,2]
[313808376,1707733871037,-200.0,0.00023335,2]
[313808377,1707733871046,-537.0,0.00023423,2]
[313808378,1707733871055,-303.57532976,0.00023502,10]
[313808379,1707733871066,-500.0,0.00023502,2]
[313808380,1707733871075,-500.0,0.00023502,2]
[313808381,1707733871085,-500.0,0.00023502,2]
[313808382,1707733871095,-500.0,0.00023502,2]
[313808383,1707733871106,-500.0,0.00023502,2]
[313808384,1707733871117,-500.0,0.00023502,2]
[313808385,1707733871127,-500.0,0.00023502,2]
[313808386,1707733871137,-500.0,0.00023502,2]
[313808387,1707733871147,-500.0,0.00023502,2]
[313808388,1707733871158,-500.0,0.00023502,2]
[313808389,1707733871168,-500.0,0.00023502,2]
[313808390,1707733871178,-500.0,0.00023502,2]
[313808391,1707733871189,-500.0,0.00023502,2]
[313808392,1707733871199,-500.0,0.00023502,2]
[313808393,1707733871209,-500.0,0.00023502,2]
[313808394,1707733871219,-500.0,0.00023502,2]
[313808395,1707733871228,-500.0,0.00023502,2]
[313808396,1707733871238,-500.0,0.00023502,2]
[313808397,1707733871248,-500.0,0.00023502,2]
[313808398,1707733871258,-500.0,0.00023502,2]
[313808399,1707733871267,-500.0,0.00023502,2]
[313808400,1707733871277,-500.0,0.00023502,2]
[313808401,1707733871287,-500.0,0.00023502,2]
[313808402,1707733871296,-500.0,0.00023502,2]
[313808403,1707733871306,-500.0,0.00023502,2]
[313808404,1707733871316,-500.0,0.00023502,2]
[313808405,1707733871326,-500.0,0.00023502,2]
[313808406,1707733871336,-500.0,0.00023502,2]
[313808407,1707733871346,-500.0,0.00023502,2]
[313808408,1707733871355,-500.0,0.00023502,2]
[313808409,1707733871365,-500.0,0.00023502,2]
[313808410,1707733871374,-500.0,0.00023502,2]
[313808411,1707733871384,-500.0,0.00023502,2]
[313808412,1707733871394,-500.0,0.00023502,2]
[313808413,1707733871403,-587.62,0.00023502,2]
[313808414,1707733871413,-500.0,0.00023502,2]
[313808415,1707733871422,-500.0,0.00023502,2]
[313808416,1707733871432,-500.0,0.00023502,2]
[313808417,1707733871442,-408.02518708,0.00023502,2]
[313808418,1707733871452,-500.0,0.00023502,2]
[313808419,1707733871461,-151.66,0.00023502,2]
[313808420,1707733871471,-500.0,0.00023502,2]
[313808421,1707733871481,-500.0,0.00023502,2]
[313808422,1707733871491,-500.0,0.00023502,2]
[313808423,1707733871500,-617.64,0.00023502,2]
[313808424,1707733871510,-311.52,0.00023502,2]
[313808425,1707733871520,-500.0,0.00023502,2]
[313808426,1707733871529,-500.0,0.00023502,2]
[313808427,1707733871538,-512.45150525,0.00023502,2]
[313808428,1707733871548,-500.0,0.00023502,2]
[313808429,1707733871557,-500.0,0.00023502,2]
[313808430,1707733871568,-528.13635041,0.00023502,2]
[313808431,1707733871578,-500.0,0.00023502,2]
[313808432,1707733871588,-500.0,0.00023502,2]
[313808433,1707733871597,-500.0,0.00023502,2]
[313808434,1707733871607,-500.0,0.00023502,2]
[313808435,1707733871617,-500.0,0.00023502,2]
[313808436,1707733871627,-850.96,0.00023502,2]
[313808437,1707733871636,-500.0,0.00023502,2]
[313808438,1707733871646,-500.0,0.00023502,2]
[313808439,1707733871656,-2929.74,0.00023502,2]
[313808440,1707733871665,-500.0,0.00023502,2]
[313808441,1707733871675,-1465.24,0.00023502,2]
[313808442,1707733871685,-2746.39,0.00023502,2]
[313808443,1707733871695,-322.61,0.00023502,2]
[313808444,1707733871705,-500.0,0.00023502,2]
[313808445,1707733871715,-3120.44,0.00023502,2]
[313808446,1707733871725,-1968.61,0.00023502,2]
[313808447,1707733871735,-500.0,0.00023502,2]
[313808448,1707733871745,-500.0,0.00023502,2]
[313808449,1707733871755,-1245.93,0.00023502,2]
[313808450,1707733871765,-8220.4,0.00023502,2]
[313808451,1707733871775,-834.79,0.00023502,2]
[313808452,1707733871784,-500.0,0.00023502,2]
[313808453,1707733871794,-500.0,0.00023502,2]
[313808454,1707733871804,-4043.08,0.00023502,2]
[313808455,1707733871813,-618.55605576,0.00023502,2]
[313808456,1707733871825,-500.0,0.00023502,2]
[313808457,1707733871835,-4209.02,0.00023502,2]
[313808458,1707733871845,-3622.67,0.00023502,2]
[313808459,1707733871854,-500.0,0.00023502,2]
[313808460,1707733871864,-500.0,0.00023502,2]
[313808461,1707733871874,-30584.48,0.00023502,2]
[313808462,1707733871884,-500.0,0.00023502,2]
[313808463,1707733871893,-500.0,0.00023502,2]
[313808464,1707733871904,-500.0,0.00023502,2]
[313808465,1707733871913,-2489.84,0.00023502,2]
[313808466,1707733871923,-500.0,0.00023502,2]
[313808467,1707733871933,-658.01,0.00023502,2]
[313808468,1707733871942,-500.0,0.00023502,2]
[313808469,1707733871952,-807.65,0.00023502,2]
[313808470,1707733871962,-500.0,0.00023502,2]
[313808471,1707733871971,-500.0,0.00023502,2]
[313808472,1707733871981,-670.96,0.00023502,2]
[313808473,1707733871991,-500.0,0.00023502,2]
[313808474,1707733872001,-592.04,0.00023502,2]
[313808475,1707733872011,-500.0,0.00023502,2]
[313808476,1707733872020,-500.0,0.00023502,2]
[313808477,1707733872030,-500.0,0.00023502,2]
[313808478,1707733872040,-550.02,0.00023502,2]
[313808479,1707733872050,-5289.57,0.00023502,2]
[313808480,1707733872060,-654.37,0.00023502,2]
[313808481,1707733872071,-500.0,0.00023502,2]
[313808482,1707733872080,-500.0,0.00023502,2]
[313808483,1707733872089,-876.87,0.00023502,2]
[313808484,1707733872099,-500.0,0.00023502,2]
[313808485,1707733872113,-500.0,0.00023502,2]
[313808486,1707733872123,-500.0,0.00023502,2]
[313808487,1707733872133,-2205.41,0.00023502,2]
[313808488,1707733872142,-650.89,0.00023502,2]
[313808489,1707733872153,-2620.05,0.00023502,2]
[313808490,1707733872163,-4539.55,0.00023502,2]
[313808491,1707733872173,-806.86,0.00023502,2]
[313808492,1707733872183,-500.0,0.00023502,2]
[313808493,1707733872193,-10402.09,0.00023502,2]
[313808494,1707733872204,-1376.01,0.00023502,2]
[313808495,1707733872213,-1175.96,0.00023502,2]
[313808496,1707733872224,-500.0,0.00023502,2]
[313808497,1707733872233,-529.62,0.00023502,2]
[313808498,1707733872243,-829.4,0.00023502,2]
[313808499,1707733872253,-1891.45,0.00023502,2]
[313808500,1707733872262,-2658.88,0.00023502,2]
[313808501,1707733872272,-3181.3,0.00023502,2]
[313808502,1707733872283,-500.0,0.00023502,2]
[313808503,1707733872293,-1134.53,0.00023502,2]
[313808504,1707733872303,-500.0,0.00023502,2]
[313808505,1707733872312,-1360.04,0.00023502,2]
[313808506,1707733872324,-1409.13,0.00023502,2]
[313808507,1707733872334,-15681.69,0.00023502,2]
[313808508,1707733872344,-891.67,0.00023502,2]
[313808509,1707733872354,-656.74,0.00023502,2]
[313808510,1707733872364,-500.0,0.00023502,2]
[313808511,1707733872374,-500.0,0.00023502,2]
[313808512,1707733872384,-1797.29,0.00023502,2]
[313808513,1707733872394,-500.0,0.00023502,2]
[313808514,1707733872405,-500.0,0.00023502,2]
[313808515,1707733872415,-5201.79,0.00023502,2]
[313808516,1707733872424,-2360.39,0.00023502,2]
[313808517,1707733872435,-500.0,0.00023502,2]
[313808518,1707733872444,-500.0,0.00023502,2]
[313808519,1707733872454,-500.0,0.00023502,2]
[313808520,1707733872463,-2326.7,0.00023502,2]
[313808521,1707733872473,-500.0,0.00023502,2]
[313808522,1707733872483,-559.82,0.00023502,2]
[313808523,1707733872493,-500.0,0.00023502,2]
[313808524,1707733872502,-500.0,0.00023502,2]
[313808525,1707733872512,-1593.69,0.00023502,2]
[313808526,1707733872523,-3297.6,0.00023502,2]
[313808527,1707733872532,-4294.35,0.00023502,2]
[313808528,1707733872543,-500.0,0.00023502,2]
[313808529,1707733872553,-532.5,0.00023502,2]
[313808530,1707733872563,-7674.53,0.00023502,2]
[313808531,1707733872574,-500.0,0.00023502,2]
[313808532,1707733872584,-1849.0,0.00023502,2]
[313808533,1707733872594,-500.0,0.00023502,2]
[313808534,1707733872604,-554.6,0.00023502,2]
[313808535,1707733872614,-4590.03,0.00023502,2]
[313808536,1707733872624,-500.0,0.00023502,2]
[313808537,1707733872634,-500.0,0.00023502,2]
[313808538,1707733872643,-500.0,0.00023502,2]
[313808539,1707733872653,-635.01,0.00023502,2]
[313808540,1707733872663,-500.0,0.00023502,2]
[313808541,1707733872673,-3517.53,0.00023502,2]
[313808542,1707733872683,-3960.55,0.00023502,2]
[313808543,1707733872693,-7666.46,0.00023502,2]
[313808544,1707733872704,-500.0,0.00023502,2]
[313808545,1707733872714,-500.0,0.00023502,2]
[313808546,1707733872723,-500.0,0.00023502,2]
[313808547,1707733872733,-2656.74,0.00023502,2]
[313808548,1707733872743,-500.0,0.00023502,2]
[313808549,1707733872753,-1202.46,0.00023502,2]
[313808550,1707733872763,-886.56,0.00023502,2]
[313808551,1707733872773,-424.20212651,0.00023502,2]
[313808552,1707733872783,-365.49234896,0.00023502,2]
[313808553,1707733872793,-500.0,0.00023502,2]
[313808554,1707733872803,-2276.55,0.00023502,2]
[313808555,1707733872813,-500.0,0.00023502,2]
[313808556,1707733872825,-1511.64,0.00023502,2]
[313808557,1707733872835,-553.24,0.00023502,2]
[313808558,1707733872845,-649.19,0.00023502,2]
[313808559,1707733872856,-703.92,0.00023502,2]
[313808560,1707733872865,-500.0,0.00023502,2]
[313808561,1707733872875,-597.39,0.00023503,2]
[313808562,1707733872885,-500.0,0.00023503,2]
[313808563,1707733872894,-500.0,0.00023503,2]
[313808564,1707733872904,-500.0,0.00023503,2]
[313808565,1707733872914,-500.0,0.00023503,2]
[313808566,1707733872923,-629.53,0.00023503,2]
[313808567,1707733872934,-600.84,0.00023503,2]
[313808568,1707733872943,-500.0,0.00023503,2]
[313808569,1707733872953,-906.41,0.00023503,2]
[313808570,1707733872963,-500.0,0.00023503,2]
[313808571,1707733872973,-575.51,0.00023503,2]
[313808572,1707733872983,-157.70845025,0.00023503,2]
[313808573,1707733872993,-500.0,0.00023503,2]
[313808574,1707733873003,-548.69,0.00023503,2]
[313808575,1707733873013,-537.39,0.00023503,2]
[313808576,1707733873022,-500.0,0.00023503,2]
[313808577,1707733873032,-500.0,0.00023503,2]
[313808578,1707733873042,-500.0,0.00023503,2]
[313808579,1707733873051,-500.0,0.00023503,2]
[313808580,1707733873061,-1325.99,0.00023503,2]
[313808581,1707733873073,-500.0,0.00023503,2]
[313808582,1707733873083,-563.03,0.00023503,2]
[313808583,1707733873093,-500.0,0.00023503,2]
[313808584,1707733873103,-500.0,0.00023503,2]
[313808585,1707733873116,-500.0,0.00023503,2]
[313808586,1707733873125,-500.0,0.00023503,2]
[313808587,1707733873135,-518.75,0.00023503,2]
[313808588,1707733873145,-500.0,0.00023503,2]
[313808589,1707733873155,-500.0,0.00023503,2]
[313808590,1707733873165,-557.97,0.00023503,2]
[313808591,1707733873174,-500.0,0.00023503,2]
[313808592,1707733873184,-500.0,0.00023503,2]
[313808593,1707733873194,-500.0,0.00023503,2]
[313808594,1707733873204,-304.52242674,0.00023503,2]
[313808595,1707733873213,-732.69,0.00023503,2]
[313808596,1707733873223,-592.76,0.00023503,2]
[313808597,1707733873232,-642.64,0.00023503,2]
[313808598,1707733873242,-407.08,0.00023503,2]
[313808599,1707733873251,-500.0,0.00023503,2]
[313808600,1707733873261,-500.0,0.00023503,2]
[313808601,1707733873270,-500.0,0.00023503,2]
[313808602,1707733873281,-500.0,0.00023503,2]
[313808603,1707733873290,-536.26,0.00023503,2]
[313808604,1707733873299,-500.0,0.00023503,2]
[313808605,1707733873309,-500.0,0.00023503,2]
[313808606,1707733873319,-629.48,0.00023503,2]
[313808607,1707733873329,-517.86,0.00023503,2]
[313808608,1707733873339,-715.83,0.00023503,2]
[313808609,1707733873349,-500.0,0.00023503,2]
[313808610,1707733873360,-500.0,0.00023503,2]
[313808611,1707733873369,-500.0,0.00023503,2]
[313808612,1707733873623,-655.78,0.00023503,2]
[313808613,1707733873637,-703.17,0.00023503,2]
[313808614,1707733873646,-679.0,0.00023503,2]
[313808615,1707733873656,-500.0,0.00023503,2]
[313808616,1707733873666,-555.32,0.00023503,2]
[313808617,1707733873675,-913.49,0.00023503,2]
[313808618,1707733873685,-203.97301222,0.00023503,2]
[313808619,1707733873694,-500.0,0.00023503,2]
[313808620,1707733873704,-340.34,0.00023503,2]
[313808621,1707733873713,-585.68,0.00023503,2]
[313808622,1707733873723,-500.0,0.00023503,2]
[313808623,1707733873733,-608.92,0.00023503,2]
[313808624,1707733873743,-316.93,0.00023503,2]
[313808625,1707733873753,-673.16,0.00023503,2]
[313808626,1707733873763,-500.0,0.00023503,2]
[313808627,1707733873772,-500.0,0.00023503,2]
[313808628,1707733873782,-500.0,0.00023503,2]
[313808629,1707733873792,-500.0,0.00023503,2]
[313808630,1707733873802,-500.0,0.00023503,2]
[313808631,1707733873811,-500.0,0.00023503,2]
[313808632,1707733873822,-500.0,0.00023503,2]
[313808633,1707733873831,-500.0,0.00023503,2]
[313808634,1707733873841,-500.0,0.00023503,2]
[313808635,1707733873851,-500.0,0.00023503,2]
[313808636,1707733873862,-500.0,0.00023503,2]
[313808637,1707733873872,-500.0,0.00023503,2]
[313808638,1707733873883,-500.0,0.00023503,2]
[313808639,1707733873893,-500.0,0.00023503,2]
[313808640,1707733873902,-668.92,0.00023503,2]
[313808641,1707733873912,-500.0,0.00023503,2]
[313808642,1707733873922,-500.0,0.00023503,2]
[313808643,1707733873932,-844.39,0.00023503,2]
[313808644,1707733873941,-500.0,0.00023503,2]
[313808645,1707733873951,-1147.14,0.00023503,2]
[313808646,1707733873960,-755.97,0.00023503,2]
[313808647,1707733873970,-500.0,0.00023503,2]
[313808648,1707733873981,-500.0,0.00023503,2]
[313808649,1707733873992,-667.47,0.00023503,2]
[313808650,1707733874002,-605.66,0.00023503,2]
[313808651,1707733874011,-331.14658724,0.00023503,2]
[313808652,1707733874021,-500.0,0.00023503,2]
[313808653,1707733874031,-886.37,0.00023503,2]
[313808654,1707733874040,-500.0,0.00023503,2]
[313808655,1707733874050,-500.0,0.00023503,2]
[313808656,1707733874059,-500.0,0.00023503,2]
[313808657,1707733874070,-632.75,0.00023503,2]
[313808658,1707733874079,-642.83,0.00023503,2]
[313808659,1707733874089,-500.0,0.00023503,2]
[313808660,1707733874100,-500.0,0.00023503,2]
[313808661,1707733874113,-929.38,0.00023503,2]
[313808662,1707733874122,-744.65,0.00023503,2]
[313808663,1707733874132,-500.0,0.00023503,2]
[313808664,1707733874142,-500.0,0.00023503,2]
[313808665,1707733874152,-500.0,0.00023503,2]
[313808666,1707733874161,-500.0,0.00023503,2]
[313808667,1707733874170,-500.0,0.00023503,2]
[313808668,1707733874180,-500.0,0.00023503,2]
[313808669,1707733874190,-500.0,0.00023503,2]
[313808670,1707733874200,-500.0,0.00023503,2]
[313808671,1707733874210,-500.0,0.00023503,2]
[313808672,1707733874219,-500.0,0.00023503,2]
[313808673,1707733874228,-819.75,0.00023503,2]
[313808674,1707733874238,-500.0,0.00023503,2]
[313808675,1707733874247,-500.0,0.00023503,2]
[313808676,1707733874256,-500.0,0.00023503,2]
[313808677,1707733874266,-500.0,0.00023503,2]
[313808678,1707733874275,-500.0,0.00023503,2]
[313808679,1707733874285,-500.0,0.00023503,2]
[313808680,1707733874295,-537.08,0.00023503,2]
[313808681,1707733874304,-500.0,0.00023503,2]
[313808682,1707733874314,-500.0,0.00023503,2]
[313808683,1707733874324,-150.0,0.00023503,2]
[313808684,1707733874333,-500.0,0.00023503,2]
[313808685,1707733874342,-500.0,0.00023503,2]
[313808686,1707733874351,-10329.42,0.00023503,2]
[313808687,1707733874361,-500.0,0.00023503,2]
[313808688,1707733874370,-500.0,0.00023503,2]
[313808689,1707733874380,-580.36,0.00023503,2]
[313808690,1707733874389,-510.94,0.00023503,2]
[313808691,1707733874398,-592.03,0.00023503,2]
[313808692,1707733874407,-500.0,0.00023503,2]
[313808693,1707733874418,-500.0,0.00023503,2]
[313808694,1707733874427,-500.0,0.00023503,2]
[313808695,1707733874436,-3105.06,0.00023503,2]
[313808696,1707733874446,-500.0,0.00023503,2]
[313808697,1707733874455,-773.66,0.00023503,2]
[313808698,1707733874465,-3271.15,0.00023503,2]
[313808699,1707733874475,-1844.55,0.00023503,2]
[313808700,1707733874484,-500.0,0.00023503,2]
[313808701,1707733874494,-940.32,0.00023503,2]
[313808702,1707733874503,-2970.51,0.00023503,2]
[313808703,1707733874513,-500.0,0.00023503,2]
[313808704,1707733874522,-539.87,0.00023503,2]
[313808705,1707733874532,-1834.77,0.00023503,2]
[313808706,1707733874541,-682.92,0.00023503,2]
[313808707,1707733874550,-500.0,0.00023503,2]
[313808708,1707733874559,-724.16,0.00023503,2]
[313808709,1707733874570,-500.0,0.00023503,2]
[313808710,1707733874579,-2718.91,0.00023503,2]
[313808711,1707733874589,-500.0,0.00023503,2]
[313808712,1707733874599,-629.24,0.00023503,2]
[313808713,1707733874609,-2450.63,0.00023503,2]
[313808714,1707733874618,-500.0,0.00023503,2]
[313808715,1707733874628,-787.17,0.00023503,2]
[313808716,1707733874637,-500.0,0.00023503,2]
[313808717,1707733874648,-180.0,0.00023503,2]
[313808718,1707733874658,-500.0,0.00023503,2]
[313808719,1707733874667,-3019.8,0.00023503,2]
[313808720,1707733874677,-500.0,0.00023503,2]
[313808721,1707733874686,-500.0,0.00023503,2]
[313808722,1707733874696,-687.94,0.00023503,2]
[313808723,1707733874705,-535.89,0.00023503,2]
[313808724,1707733874715,-500.0,0.00023503,2]
[313808725,1707733874724,-3020.97,0.00023503,2]
[313808726,1707733874734,-500.0,0.00023503,2]
[313808727,1707733874743,-500.84,0.00023503,2]
[313808728,1707733874753,-500.0,0.00023503,2]
[313808729,1707733874762,-745.25,0.00023503,2]
[313808730,1707733874772,-500.0,0.00023503,2]
[313808731,1707733874782,-1416.34,0.00023503,2]
[313808732,1707733874791,-630.19,0.00023503,2]
[313808733,1707733874801,-500.0,0.00023503,2]
[313808734,1707733874810,-618.63,0.00023503,2]
[313808735,1707733874820,-500.0,0.00023503,2]
[313808736,1707733874829,-1694.61,0.00023503,2]
[313808737,1707733874838,-581.03,0.00023503,2]
[313808738,1707733874848,-454.36,0.00023503,2]
[313808739,1707733874857,-500.0,0.00023503,2]
[313808740,1707733874867,-1109.46,0.00023503,2]
[313808741,1707733874876,-500.0,0.00023503,2]
[313808742,1707733874886,-500.0,0.00023503,2]
[313808743,1707733874895,-500.0,0.00023503,2]
[313808744,1707733874905,-500.0,0.00023503,2]
[313808745,1707733874916,-5547.02,0.00023503,2]
[313808746,1707733874926,-500.0,0.00023503,2]
[313808747,1707733874936,-500.0,0.00023503,2]
[313808748,1707733874946,-500.0,0.00023503,2]
[313808749,1707733874955,-639.7,0.00023503,2]
[313808750,1707733874964,-500.0,0.00023503,2]
[313808751,1707733874974,-10421.15,0.00023503,2]
[313808752,1707733874984,-500.0,0.00023503,2]
[313808753,1707733874993,-995.68,0.00023503,2]
[313808754,1707733875002,-500.0,0.00023503,2]
[313808755,1707733875011,-833.12,0.00023503,2]
[313808756,1707733875021,-500.0,0.00023503,2]
[313808757,1707733875030,-500.0,0.00023503,2]
[313808758,1707733875040,-500.0,0.00023503,2]
[313808759,1707733875049,-2262.56,0.00023503,2]
[313808760,1707733875059,-563.82,0.00023503,2]
[313808761,1707733875070,-588.41,0.00023503,2]
[313808762,1707733875079,-500.0,0.00023503,2]
[313808763,1707733875089,-500.0,0.00023503,2]
[313808764,1707733875099,-1609.22,0.00023503,2]
[313808765,1707733875113,-500.0,0.00023503,2]
[313808766,1707733875122,-807.99,0.00023503,2]
[313808767,1707733875132,-500.0,0.00023503,2]
[313808768,1707733875142,-500.0,0.00023503,2]
[313808769,1707733875152,-519.62,0.00023503,2]
[313808770,1707733875162,-1981.21,0.00023503,2]
[313808771,1707733875172,-500.0,0.00023503,2]
[313808772,1707733875183,-797.72,0.00023503,2]
[313808773,1707733875193,-500.0,0.00023503,2]
[313808774,1707733875202,-671.69,0.00023503,2]
[313808775,1707733875212,-500.0,0.00023503,2]
[313808776,1707733875221,-815.55,0.00023503,2]
[313808777,1707733875230,-729.69,0.00023503,2]
[313808778,1707733875240,-2389.73,0.00023503,2]
[313808779,1707733875249,-718.0,0.00023503,2]
[313808780,1707733875258,-500.0,0.00023503,2]
[313808781,1707733875268,-664.45,0.00023503,2]
[313808782,1707733875278,-788.41,0.00023503,2]
[313808783,1707733875288,-500.0,0.00023503,2]
[313808784,1707733875297,-1199.43,0.00023503,2]
[313808785,1707733875306,-500.0,0.00023503,2]
[313808786,1707733875316,-500.0,0.00023503,2]
[313808787,1707733875325,-617.79,0.00023503,2]